[Event "*** Titled Tuesday Blitz"]
[Site "Chess.com"]
[Date "2021.02.02"]
[Round "4"]
[White "IriBu"]
[Black "PSvidler"]
[Result "1-0"]
[WhiteElo "2560"]
[BlackElo "2879"]
[TimeControl "180+1"]
[EndTime "10:40:29 PST"]
[Termination "IriBu won by resignation"]

1. e4 {[%clk 0:03:00.9]} 1... c5 {[%clk 0:02:59.6]} 2. Be2 {[%clk 0:02:59.9]}
2... Nf6 {[%clk 0:02:58.1]} 3. d3 {[%clk 0:02:59.2]} 3... d5 {[%clk 0:02:57.8]}
4. e5 {[%clk 0:02:59.4]} 4... Nfd7 {[%clk 0:02:55.5]} 5. f4 {[%clk 0:02:59.6]}
5... e6 {[%clk 0:02:55.1]} 6. Nf3 {[%clk 0:02:59.4]} 6... Nc6 {[%clk 0:02:43.5]}
7. c3 {[%clk 0:02:58.4]} 7... b5 {[%clk 0:02:37.7]} 8. O-O {[%clk 0:02:53.2]}
8... b4 {[%clk 0:02:22.1]} 9. a3 {[%clk 0:02:51.3]} 9... bxc3 {[%clk 0:02:18.4]}
10. bxc3 {[%clk 0:02:50.8]} 10... Rb8 {[%clk 0:02:18.3]} 11. d4 {[%clk
0:02:47.9]} 11... Qa5 {[%clk 0:02:16.4]} 12. Qc2 {[%clk 0:02:33.5]} 12... g6
{[%clk 0:02:10]} 13. Be3 {[%clk 0:02:19.7]} 13... Ba6 {[%clk 0:02:06.8]} 14.
Bxa6 {[%clk 0:02:08.6]} 14... Qxa6 {[%clk 0:02:05.5]} 15. Nbd2 {[%clk
0:02:08.9]} 15... Be7 {[%clk 0:02:04.6]} 16. a4 {[%clk 0:01:46]} 16... O-O
{[%clk 0:02:03.9]} 17. g4 {[%clk 0:01:45.1]} 17... cxd4 {[%clk 0:02:00.6]} 18.
Nxd4 {[%clk 0:01:41.3]} 18... Nxd4 {[%clk 0:01:59.5]} 19. Bxd4 {[%clk
0:01:38.9]} 19... Bc5 {[%clk 0:01:56.7]} 20. Nf3 {[%clk 0:01:36]} 20... Rfc8
{[%clk 0:01:54.6]} 21. Qd2 {[%clk 0:01:30.5]} 21... Qa5 {[%clk 0:01:46.8]} 22.
Rac1 {[%clk 0:01:22]} 22... Bxd4+ {[%clk 0:01:44.5]} 23. Nxd4 {[%clk 0:01:21.2]}
23... Rc4 {[%clk 0:01:27]} 24. f5 {[%clk 0:01:11.5]} 24... Nxe5 {[%clk
0:01:23.2]} 25. fxe6 {[%clk 0:01:09.7]} 25... fxe6 {[%clk 0:01:22.9]} 26. Qf4
{[%clk 0:01:04.6]} 26... Qc7 {[%clk 0:01:22.2]} 27. Qf6 {[%clk 0:00:56.6]} 27...
Re8 {[%clk 0:01:06.9]} 28. h3 {[%clk 0:00:46.4]} 28... Rxc3 {[%clk 0:00:58.6]}
29. Rxc3 {[%clk 0:00:43.7]} 29... Qxc3 {[%clk 0:00:56.6]} 30. Qxe5 {[%clk
0:00:43.6]} 30... Qxh3 {[%clk 0:00:54.7]} 31. Qf4 {[%clk 0:00:35.5]} 1-0

[Event "*** Titled Tuesday Blitz"]
[Site "Chess.com"]
[Date "2021.02.02"]
[Round "4"]
[White "chessasuke"]
[Black "c_r_e_e_p_e_r"]
[Result "1-0"]
[WhiteElo "2597"]
[BlackElo "2367"]
[TimeControl "180+1"]
[EndTime "10:40:30 PST"]
[Termination "chessasuke won by checkmate"]

1. d4 {[%clk 0:03:00.9]} 1... Nf6 {[%clk 0:03:00.1]} 2. Nf3 {[%clk 0:03:01.8]}
2... e6 {[%clk 0:03:00.4]} 3. g3 {[%clk 0:02:59.3]} 3... c5 {[%clk 0:03:00.9]}
4. Bg2 {[%clk 0:02:57.2]} 4... cxd4 {[%clk 0:03:01.5]} 5. Nxd4 {[%clk 0:02:58]}
5... d5 {[%clk 0:02:59.6]} 6. O-O {[%clk 0:02:57.1]} 6... e5 {[%clk 0:02:59.4]}
7. Nb3 {[%clk 0:02:56.2]} 7... h6 {[%clk 0:02:43.2]} 8. c4 {[%clk 0:02:42.8]}
8... d4 {[%clk 0:02:41.6]} 9. e3 {[%clk 0:02:41.9]} 9... d3 {[%clk 0:02:36.1]}
10. Nc3 {[%clk 0:02:41.9]} 10... Nc6 {[%clk 0:02:31.6]} 11. e4 {[%clk 0:02:40]}
11... Be6 {[%clk 0:02:29.5]} 12. Nd5 {[%clk 0:02:40]} 12... Nb4 {[%clk
0:02:03.9]} 13. Bd2 {[%clk 0:02:33.3]} 13... Nbxd5 {[%clk 0:01:44]} 14. cxd5
{[%clk 0:02:29.3]} 14... Bg4 {[%clk 0:01:44.6]} 15. f3 {[%clk 0:02:26.7]} 15...
Bd7 {[%clk 0:01:42.4]} 16. Be3 {[%clk 0:02:23.3]} 16... Bb5 {[%clk 0:01:40.9]}
17. a4 {[%clk 0:02:21.3]} 17... Ba6 {[%clk 0:01:40.3]} 18. Nc5 {[%clk
0:02:20.3]} 18... Qb6 {[%clk 0:01:29.6]} 19. b4 {[%clk 0:02:09.8]} 19... Bc4
{[%clk 0:01:16.3]} 20. Qd2 {[%clk 0:02:04.6]} 20... Bxc5 {[%clk 0:00:51.1]} 21.
Bxc5 {[%clk 0:01:59.7]} 21... Qd8 {[%clk 0:00:45]} 22. Rfc1 {[%clk 0:01:59.6]}
22... b5 {[%clk 0:00:40.4]} 23. axb5 {[%clk 0:01:55.9]} 23... Bxb5 {[%clk
0:00:40.6]} 24. Bf1 {[%clk 0:01:52.1]} 24... Nd7 {[%clk 0:00:31.2]} 25. Bxd3
{[%clk 0:01:50.5]} 25... Bxd3 {[%clk 0:00:30.1]} 26. Qxd3 {[%clk 0:01:51.4]}
26... a5 {[%clk 0:00:29.8]} 27. Qb5 {[%clk 0:01:40.3]} 27... axb4 {[%clk
0:00:23.6]} 28. Rxa8 {[%clk 0:01:35.6]} 28... Qxa8 {[%clk 0:00:24.5]} 29. Bxb4
{[%clk 0:01:33.4]} 29... Qa7+ {[%clk 0:00:21.4]} 30. Kg2 {[%clk 0:01:32.2]}
30... Qa2+ {[%clk 0:00:07.4]} 31. Kh3 {[%clk 0:01:31.3]} 31... Qa8 {[%clk
0:00:07.3]} 32. Qc6 {[%clk 0:01:29.4]} 32... Qd8 {[%clk 0:00:06.7]} 33. Qd6
{[%clk 0:01:28.2]} 33... f6 {[%clk 0:00:06.2]} 34. Qe6+ {[%clk 0:01:26.5]} 34...
Qe7 {[%clk 0:00:05.3]} 35. Qxe7# {[%clk 0:01:26.2]} 1-0

[Event "*** Titled Tuesday Blitz"]
[Site "Chess.com"]
[Date "2021.02.02"]
[Round "4"]
[White "Iball95"]
[Black "federicosellitti"]
[Result "1-0"]
[WhiteElo "2609"]
[BlackElo "2427"]
[TimeControl "180+1"]
[EndTime "10:40:32 PST"]
[Termination "Iball95 won by checkmate"]

1. e4 {[%clk 0:03:00.9]} 1... c5 {[%clk 0:02:56.5]} 2. Nf3 {[%clk 0:03:01]} 2...
Nf6 {[%clk 0:02:57.1]} 3. Nc3 {[%clk 0:02:59.4]} 3... d5 {[%clk 0:02:57.2]} 4.
exd5 {[%clk 0:03:00.3]} 4... Nxd5 {[%clk 0:02:58.1]} 5. Bc4 {[%clk 0:02:57.4]}
5... Nxc3 {[%clk 0:02:57.4]} 6. bxc3 {[%clk 0:02:58.3]} 6... e6 {[%clk
0:02:58.1]} 7. O-O {[%clk 0:02:57.1]} 7... Be7 {[%clk 0:02:58.8]} 8. d4 {[%clk
0:02:53.2]} 8... O-O {[%clk 0:02:58]} 9. Qe2 {[%clk 0:02:52.3]} 9... Nc6 {[%clk
0:02:55.9]} 10. Rd1 {[%clk 0:02:51.7]} 10... Qc7 {[%clk 0:02:44.3]} 11. Qe4
{[%clk 0:02:40]} 11... cxd4 {[%clk 0:02:23.3]} 12. cxd4 {[%clk 0:02:40.9]} 12...
Nb4 {[%clk 0:02:14]} 13. Bb3 {[%clk 0:02:40.7]} 13... Bd7 {[%clk 0:01:47.7]} 14.
Bd2 {[%clk 0:02:14.8]} 14... Bc6 {[%clk 0:01:40.6]} 15. Qg4 {[%clk 0:02:14]}
15... Nd5 {[%clk 0:01:33.9]} 16. Ne5 {[%clk 0:02:11.4]} 16... Nf6 {[%clk
0:01:32]} 17. Qh3 {[%clk 0:02:11]} 17... Rad8 {[%clk 0:01:24.4]} 18. c3 {[%clk
0:02:08.8]} 18... Be4 {[%clk 0:01:18.1]} 19. Re1 {[%clk 0:01:38.1]} 19... Bg6
{[%clk 0:01:06.9]} 20. Re2 {[%clk 0:01:10.8]} 20... Bd6 {[%clk 0:00:46.3]} 21.
Rae1 {[%clk 0:01:05.8]} 21... Rfe8 {[%clk 0:00:43.8]} 22. Bg5 {[%clk 0:00:59.3]}
22... Be7 {[%clk 0:00:35.5]} 23. Nxg6 {[%clk 0:00:45.7]} 23... hxg6 {[%clk
0:00:36.4]} 24. Rxe6 {[%clk 0:00:45.4]} 24... fxe6 {[%clk 0:00:36.9]} 25. Bxe6+
{[%clk 0:00:45.2]} 25... Kf8 {[%clk 0:00:29.7]} 26. Qh8+ {[%clk 0:00:45.3]}
26... Ng8 {[%clk 0:00:30.3]} 27. Qxg8# {[%clk 0:00:46.2]} 1-0

[Event "*** Titled Tuesday Blitz"]
[Site "Chess.com"]
[Date "2021.02.02"]
[Round "4"]
[White "GelmanAlexander"]
[Black "GigaQuparadze"]
[Result "1-0"]
[WhiteElo "2575"]
[BlackElo "2973"]
[TimeControl "180+1"]
[EndTime "10:40:40 PST"]
[Termination "GelmanAlexander won by resignation"]

1. d4 {[%clk 0:03:00.9]} 1... Nf6 {[%clk 0:02:59.5]} 2. Nc3 {[%clk 0:03:01.1]}
2... e6 {[%clk 0:02:59]} 3. Bf4 {[%clk 0:03:00.4]} 3... b6 {[%clk 0:02:57.6]} 4.
e4 {[%clk 0:02:57.3]} 4... Bb4 {[%clk 0:02:55.5]} 5. e5 {[%clk 0:02:34.6]} 5...
Nd5 {[%clk 0:02:55.1]} 6. Bd2 {[%clk 0:02:25.5]} 6... Nxc3 {[%clk 0:02:55]} 7.
bxc3 {[%clk 0:02:23.8]} 7... Be7 {[%clk 0:02:54.9]} 8. Qg4 {[%clk 0:02:24]} 8...
g6 {[%clk 0:02:50.3]} 9. h4 {[%clk 0:02:20.8]} 9... h5 {[%clk 0:02:49.4]} 10.
Qg3 {[%clk 0:02:11.6]} 10... Nc6 {[%clk 0:02:45.6]} 11. Bd3 {[%clk 0:02:11.6]}
11... Bb7 {[%clk 0:02:45]} 12. Nf3 {[%clk 0:02:05.1]} 12... d6 {[%clk
0:02:41.6]} 13. O-O {[%clk 0:01:51.4]} 13... Qd7 {[%clk 0:02:41.5]} 14. a4
{[%clk 0:01:45.3]} 14... O-O-O {[%clk 0:02:38.4]} 15. a5 {[%clk 0:01:44.7]}
15... Nxa5 {[%clk 0:02:38.4]} 16. Rxa5 {[%clk 0:01:44.5]} 16... bxa5 {[%clk
0:02:38.5]} 17. Rb1 {[%clk 0:01:40.7]} 17... d5 {[%clk 0:02:38.7]} 18. Ng5
{[%clk 0:01:35.3]} 18... Bxg5 {[%clk 0:02:37.1]} 19. Bxg5 {[%clk 0:01:34.5]}
19... Rde8 {[%clk 0:02:36.7]} 20. Bb5 {[%clk 0:01:15.4]} 20... c6 {[%clk
0:02:35.8]} 21. Bf1 {[%clk 0:01:04.3]} 21... Kc7 {[%clk 0:02:27]} 22. c4 {[%clk
0:01:01.6]} 22... Kc8 {[%clk 0:02:19.3]} 23. Qa3 {[%clk 0:00:58.4]} 23... Qc7
{[%clk 0:02:19]} 24. Bd2 {[%clk 0:00:47.6]} 24... dxc4 {[%clk 0:02:01.8]} 25.
Bxa5 {[%clk 0:00:46.9]} 25... Qd7 {[%clk 0:02:01.1]} 26. Bc3 {[%clk 0:00:35.6]}
26... Qd5 {[%clk 0:01:48.1]} 27. Qxa7 {[%clk 0:00:34.4]} 27... c5 {[%clk
0:01:39.3]} 28. dxc5 {[%clk 0:00:34.3]} 28... Re7 {[%clk 0:01:39.3]} 29. Ba5
{[%clk 0:00:25.9]} 29... Qc6 {[%clk 0:01:24.2]} 30. Rb6 {[%clk 0:00:23.1]} 30...
Qxc5 {[%clk 0:01:22.4]} 31. Bb4 {[%clk 0:00:22.5]} 31... Qc7 {[%clk 0:01:16.3]}
32. Bd6 {[%clk 0:00:21.2]} 32... Qd7 {[%clk 0:01:09.3]} 33. Qa8+ {[%clk
0:00:19.2]} 1-0

[Event "*** Titled Tuesday Blitz"]
[Site "Chess.com"]
[Date "2021.02.02"]
[Round "4"]
[White "Jumbo"]
[Black "NiranjanNavalgund"]
[Result "1-0"]
[WhiteElo "2817"]
[BlackElo "2520"]
[TimeControl "180+1"]
[EndTime "10:40:41 PST"]
[Termination "Jumbo won by resignation"]

1. e3 {[%clk 0:03:00.9]} 1... e5 {[%clk 0:02:56.1]} 2. c4 {[%clk 0:02:58.7]}
2... Nf6 {[%clk 0:02:47.7]} 3. Nc3 {[%clk 0:02:54.9]} 3... Bb4 {[%clk
0:02:45.7]} 4. Nge2 {[%clk 0:02:52.3]} 4... O-O {[%clk 0:02:43.9]} 5. Qc2 {[%clk
0:02:47.1]} 5... d5 {[%clk 0:02:36.8]} 6. cxd5 {[%clk 0:02:43.9]} 6... Nxd5
{[%clk 0:02:37.6]} 7. Ng3 {[%clk 0:02:40.2]} 7... Nc6 {[%clk 0:02:25.4]} 8. Bd3
{[%clk 0:02:37.3]} 8... g6 {[%clk 0:02:22.6]} 9. Be4 {[%clk 0:02:35.9]} 9...
Bxc3 {[%clk 0:01:50.6]} 10. bxc3 {[%clk 0:02:18.3]} 10... f5 {[%clk 0:01:49.1]}
11. Bf3 {[%clk 0:02:06.1]} 11... e4 {[%clk 0:01:46.9]} 12. Be2 {[%clk
0:02:06.6]} 12... Be6 {[%clk 0:01:42.9]} 13. O-O {[%clk 0:02:05.4]} 13... Ne5
{[%clk 0:01:32]} 14. Ba3 {[%clk 0:01:59.8]} 14... Rf7 {[%clk 0:01:30.9]} 15. c4
{[%clk 0:01:59.2]} 15... Nf6 {[%clk 0:01:29]} 16. Qc3 {[%clk 0:01:52.9]} 16...
Nd3 {[%clk 0:01:18.5]} 17. f3 {[%clk 0:01:52.2]} 17... Rd7 {[%clk 0:00:49.5]}
18. fxe4 {[%clk 0:01:49.2]} 18... Nxe4 {[%clk 0:00:47.1]} 19. Nxe4 {[%clk
0:01:49.4]} 19... fxe4 {[%clk 0:00:46.6]} 20. Rf8+ {[%clk 0:01:46.8]} 20... Qxf8
{[%clk 0:00:45.8]} 21. Bxf8 {[%clk 0:01:47.7]} 21... Rxf8 {[%clk 0:00:46.2]} 22.
Rf1 {[%clk 0:01:46.4]} 22... Rxf1+ {[%clk 0:00:44.5]} 23. Bxf1 {[%clk
0:01:47.3]} 23... Kf7 {[%clk 0:00:38.4]} 24. Qh8 {[%clk 0:01:38.5]} 24... h5
{[%clk 0:00:37.5]} 25. Bxd3 {[%clk 0:01:16.4]} 25... Rxd3 {[%clk 0:00:36.1]} 26.
Qh7+ {[%clk 0:01:16.1]} 26... Kf6 {[%clk 0:00:36.3]} 27. Qxc7 {[%clk 0:01:16.6]}
27... Rxd2 {[%clk 0:00:34.6]} 28. Qxb7 {[%clk 0:01:11.6]} 28... Bxc4 {[%clk
0:00:31.7]} 29. Qc6+ {[%clk 0:01:04.2]} 29... Ke5 {[%clk 0:00:27.2]} 30. Qxc4
{[%clk 0:01:01]} 1-0

[Event "*** Titled Tuesday Blitz"]
[Site "Chess.com"]
[Date "2021.02.02"]
[Round "4"]
[White "SGchess01"]
[Black "PopMilan95"]
[Result "1-0"]
[WhiteElo "2802"]
[BlackElo "2605"]
[TimeControl "180+1"]
[EndTime "10:40:43 PST"]
[Termination "SGchess01 won by resignation"]

1. e4 {[%clk 0:03:00.9]} 1... d6 {[%clk 0:02:59]} 2. d4 {[%clk 0:02:58.1]} 2...
Nf6 {[%clk 0:02:57.5]} 3. Nc3 {[%clk 0:02:58.4]} 3... e5 {[%clk 0:02:45.1]} 4.
Nf3 {[%clk 0:02:59.3]} 4... exd4 {[%clk 0:02:44.2]} 5. Nxd4 {[%clk 0:02:59.9]}
5... Be7 {[%clk 0:02:43.2]} 6. g3 {[%clk 0:02:59.2]} 6... d5 {[%clk 0:02:38.5]}
7. e5 {[%clk 0:02:56.9]} 7... Ng4 {[%clk 0:02:37.5]} 8. Bg2 {[%clk 0:02:57.3]}
8... Nxe5 {[%clk 0:02:04.9]} 9. Qe2 {[%clk 0:02:25]} 9... Nbc6 {[%clk
0:01:57.6]} 10. Nxc6 {[%clk 0:02:24.9]} 10... Nxc6 {[%clk 0:01:57.4]} 11. Nxd5
{[%clk 0:02:25.5]} 11... Be6 {[%clk 0:01:24.8]} 12. Nxe7 {[%clk 0:02:24.8]}
12... Qxe7 {[%clk 0:01:25.7]} 13. O-O {[%clk 0:02:23.4]} 13... O-O {[%clk
0:01:25.3]} 14. c3 {[%clk 0:02:20.9]} 14... Qc5 {[%clk 0:01:19.4]} 15. Be3
{[%clk 0:02:16.9]} 15... Qa5 {[%clk 0:00:59.4]} 16. Rfd1 {[%clk 0:02:15.6]}
16... Rad8 {[%clk 0:00:48.5]} 17. a4 {[%clk 0:02:09.8]} 17... Rxd1+ {[%clk
0:00:46.9]} 18. Qxd1 {[%clk 0:02:08.9]} 18... Rd8 {[%clk 0:00:41.5]} 19. Qe2
{[%clk 0:02:06.2]} 19... h5 {[%clk 0:00:19.2]} 20. Qb5 {[%clk 0:02:04.1]} 20...
Bd5 {[%clk 0:00:13.3]} 21. Bxd5 {[%clk 0:01:58.7]} 21... Rxd5 {[%clk 0:00:14.2]}
22. Qxb7 {[%clk 0:01:58.9]} 22... Rd6 {[%clk 0:00:06.9]} 23. b4 {[%clk
0:01:53.1]} 23... Qf5 {[%clk 0:00:06.5]} 24. Bf4 {[%clk 0:01:48.5]} 24... Re6
{[%clk 0:00:05.9]} 25. b5 {[%clk 0:01:46.8]} 25... Ne5 {[%clk 0:00:04.5]} 26.
Bxe5 {[%clk 0:01:46.5]} 26... Qxe5 {[%clk 0:00:05.4]} 27. Qxa7 {[%clk
0:01:44.4]} 27... Qxc3 {[%clk 0:00:05.4]} 28. Rd1 {[%clk 0:01:42.8]} 28... Re1+
{[%clk 0:00:04.8]} 29. Rxe1 {[%clk 0:01:40.7]} 29... Qxe1+ {[%clk 0:00:05.7]}
30. Kg2 {[%clk 0:01:41.6]} 30... h4 {[%clk 0:00:06.2]} 31. Qa8+ {[%clk
0:01:36.2]} 31... Kh7 {[%clk 0:00:05.9]} 32. Qf3 {[%clk 0:01:36.4]} 32... hxg3
{[%clk 0:00:02.6]} 33. hxg3 {[%clk 0:01:37.3]} 33... f6 {[%clk 0:00:02.6]} 34.
Qd3+ {[%clk 0:01:31.8]} 34... g6 {[%clk 0:00:02.1]} 35. Qd7+ {[%clk 0:01:31]}
35... Kh6 {[%clk 0:00:02.6]} 36. Qxc7 {[%clk 0:01:30.9]} 36... Qe4+ {[%clk
0:00:02.5]} 37. Kh2 {[%clk 0:01:31.5]} 37... Qf3 {[%clk 0:00:02.1]} 38. Qf4+
{[%clk 0:01:31.9]} 1-0

[Event "*** Titled Tuesday Blitz"]
[Site "Chess.com"]
[Date "2021.02.02"]
[Round "4"]
[White "Tpros"]
[Black "Aslanov_Umid"]
[Result "0-1"]
[WhiteElo "2509"]
[BlackElo "2327"]
[TimeControl "180+1"]
[EndTime "10:40:43 PST"]
[Termination "Aslanov_Umid won by resignation"]

1. c4 {[%clk 0:03:00.9]} 1... e6 {[%clk 0:03:00]} 2. e3 {[%clk 0:03:00.2]} 2...
d5 {[%clk 0:03:00.4]} 3. Nf3 {[%clk 0:03:01.1]} 3... c6 {[%clk 0:02:58.9]} 4. b3
{[%clk 0:03:01.6]} 4... Nf6 {[%clk 0:02:58.7]} 5. Bb2 {[%clk 0:03:02.1]} 5...
Be7 {[%clk 0:02:59.4]} 6. d4 {[%clk 0:03:02.1]} 6... O-O {[%clk 0:02:59.7]} 7.
Nbd2 {[%clk 0:03:02.8]} 7... Nbd7 {[%clk 0:02:58.7]} 8. Bd3 {[%clk 0:03:03]}
8... b6 {[%clk 0:02:59.1]} 9. O-O {[%clk 0:03:02.3]} 9... Bb7 {[%clk 0:02:59.6]}
10. e4 {[%clk 0:03:02.9]} 10... dxe4 {[%clk 0:02:59.1]} 11. Nxe4 {[%clk
0:03:03.6]} 11... Nxe4 {[%clk 0:02:59.4]} 12. Bxe4 {[%clk 0:03:04.5]} 12... Nf6
{[%clk 0:02:58.9]} 13. Bc2 {[%clk 0:03:03.5]} 13... h6 {[%clk 0:02:58.9]} 14.
Qe2 {[%clk 0:03:03.8]} 14... Qc7 {[%clk 0:02:56.5]} 15. Rad1 {[%clk 0:03:03.5]}
15... c5 {[%clk 0:02:53]} 16. Ne5 {[%clk 0:03:02]} 16... cxd4 {[%clk 0:02:50.1]}
17. Bxd4 {[%clk 0:03:02.9]} 17... Rad8 {[%clk 0:02:48.5]} 18. Bb2 {[%clk
0:02:52.5]} 18... Ba8 {[%clk 0:02:33]} 19. Rxd8 {[%clk 0:02:51.7]} 19... Rxd8
{[%clk 0:02:31.9]} 20. Rd1 {[%clk 0:02:52.6]} 20... Qb7 {[%clk 0:02:27]} 21.
Rxd8+ {[%clk 0:02:51.1]} 21... Bxd8 {[%clk 0:02:27.9]} 22. f3 {[%clk 0:02:52]}
22... Be7 {[%clk 0:02:26]} 23. Bd4 {[%clk 0:02:51.2]} 23... Qc7 {[%clk
0:02:25.2]} 24. Bb2 {[%clk 0:02:39.1]} 24... Bc5+ {[%clk 0:02:23.4]} 25. Kf1
{[%clk 0:02:37.2]} 25... Bb7 {[%clk 0:02:15.4]} 26. g3 {[%clk 0:02:36.1]} 26...
Nd7 {[%clk 0:02:02.8]} 27. Nxd7 {[%clk 0:02:34.4]} 27... Qxd7 {[%clk 0:02:03.7]}
28. Bc3 {[%clk 0:02:25]} 28... Qd6 {[%clk 0:01:58.5]} 29. Be5 {[%clk 0:02:19.9]}
29... Bxf3 {[%clk 0:01:44.4]} 30. Bxd6 {[%clk 0:02:19.9]} 30... Bxe2+ {[%clk
0:01:44.3]} 31. Kxe2 {[%clk 0:02:20.8]} 31... Bxd6 {[%clk 0:01:45]} 32. Kf3
{[%clk 0:02:20.6]} 32... Kf8 {[%clk 0:01:44.7]} 33. h3 {[%clk 0:02:20.2]} 33...
Ke7 {[%clk 0:01:44.7]} 34. g4 {[%clk 0:02:18]} 34... g6 {[%clk 0:01:44.4]} 35.
Be4 {[%clk 0:02:15.1]} 35... f5 {[%clk 0:01:43.9]} 36. Bc2 {[%clk 0:02:11.6]}
36... Kf6 {[%clk 0:01:42.4]} 37. h4 {[%clk 0:02:01.3]} 37... e5 {[%clk
0:01:40.1]} 38. h5 {[%clk 0:01:58.3]} 38... e4+ {[%clk 0:01:38.8]} 39. Ke2
{[%clk 0:01:53.7]} 39... gxh5 {[%clk 0:01:34.1]} 40. gxf5 {[%clk 0:01:53.7]}
40... Kxf5 {[%clk 0:01:35]} 41. Kf2 {[%clk 0:01:49.5]} 41... h4 {[%clk
0:01:32.4]} 42. Kg2 {[%clk 0:01:48.9]} 42... Kf4 {[%clk 0:01:30.6]} 43. Kh3
{[%clk 0:01:47.3]} 43... Be7 {[%clk 0:01:28.8]} 44. Kg2 {[%clk 0:01:46.8]} 44...
h5 {[%clk 0:01:21.7]} 45. Bd1 {[%clk 0:01:46.4]} 45... Kg5 {[%clk 0:01:18.8]}
46. Bc2 {[%clk 0:01:44.8]} 46... e3 {[%clk 0:01:16.1]} 47. Bd1 {[%clk
0:01:28.7]} 47... Kf5 {[%clk 0:01:06.4]} 48. Bxh5 {[%clk 0:01:24.9]} 48... Ke4
{[%clk 0:01:06.4]} 49. Bg6+ {[%clk 0:01:21]} 49... Kd4 {[%clk 0:01:05.2]} 50.
Kf3 {[%clk 0:01:20.5]} 50... h3 {[%clk 0:01:02.1]} 51. Bf5 {[%clk 0:01:20.1]}
51... h2 {[%clk 0:01:00.7]} 52. Kg2 {[%clk 0:01:20.3]} 52... e2 {[%clk
0:01:00.9]} 0-1

[Event "*** Titled Tuesday Blitz"]
[Site "Chess.com"]
[Date "2021.02.02"]
[Round "4"]
[White "rynos0411"]
[Black "esrosenberg"]
[Result "1-0"]
[WhiteElo "2406"]
[BlackElo "2177"]
[TimeControl "180+1"]
[EndTime "10:40:54 PST"]
[Termination "rynos0411 won on time"]

1. e4 {[%clk 0:03:00.9]} 1... e6 {[%clk 0:03:00]} 2. d4 {[%clk 0:02:58.7]} 2...
d5 {[%clk 0:03:00.4]} 3. Nd2 {[%clk 0:02:59]} 3... c5 {[%clk 0:01:31.8]} 4. Ngf3
{[%clk 0:02:56]} 4... cxd4 {[%clk 0:01:25.6]} 5. Nxd4 {[%clk 0:02:55.6]} 5...
Nc6 {[%clk 0:01:25.6]} 6. Bb5 {[%clk 0:02:55.4]} 6... Bd7 {[%clk 0:01:24.3]} 7.
Nxc6 {[%clk 0:02:54.8]} 7... bxc6 {[%clk 0:00:47.8]} 8. Bd3 {[%clk 0:02:52.7]}
8... Bd6 {[%clk 0:00:48.3]} 9. Qe2 {[%clk 0:02:51.3]} 9... e5 {[%clk 0:00:47.8]}
10. O-O {[%clk 0:02:42.5]} 10... Nf6 {[%clk 0:00:42.3]} 11. h3 {[%clk
0:02:31.6]} 11... O-O {[%clk 0:00:38.3]} 12. Kh1 {[%clk 0:02:29.4]} 12... Re8
{[%clk 0:00:35.3]} 13. b3 {[%clk 0:02:24.5]} 13... a5 {[%clk 0:00:28.6]} 14. a4
{[%clk 0:02:22.8]} 14... Qc8 {[%clk 0:00:21.5]} 15. Qf3 {[%clk 0:02:01.7]} 15...
Re6 {[%clk 0:00:15.1]} 16. Bb2 {[%clk 0:01:58]} 16... g6 {[%clk 0:00:13.6]} 17.
Rae1 {[%clk 0:01:54.8]} 17... Nh5 {[%clk 0:00:13.7]} 18. exd5 {[%clk 0:01:53.3]}
18... Rf6 {[%clk 0:00:12.7]} 19. Qe3 {[%clk 0:01:38.2]} 19... cxd5 {[%clk
0:00:12.7]} 20. Bxe5 {[%clk 0:01:37.8]} 20... Bxe5 {[%clk 0:00:13.1]} 21. Qxe5
{[%clk 0:01:34.5]} 21... Rb8 {[%clk 0:00:10.4]} 22. g4 {[%clk 0:01:27.4]} 22...
Rbb6 {[%clk 0:00:07.8]} 23. gxh5 {[%clk 0:01:25.2]} 23... Bxh3 {[%clk
0:00:07.9]} 24. Qe8+ {[%clk 0:01:25.1]} 24... Qxe8 {[%clk 0:00:07]} 25. Rxe8+
{[%clk 0:01:24.9]} 25... Kg7 {[%clk 0:00:07.9]} 26. Rfe1 {[%clk 0:01:21.1]}
26... Rxf2 {[%clk 0:00:07.6]} 27. R1e2 {[%clk 0:01:13.8]} 27... Rbf6 {[%clk
0:00:06.5]} 28. hxg6 {[%clk 0:01:10.6]} 28... hxg6 {[%clk 0:00:05.6]} 29. Rxf2
{[%clk 0:01:09.2]} 29... Rxf2 {[%clk 0:00:05.4]} 30. Re2 {[%clk 0:01:10.1]}
30... Rf6 {[%clk 0:00:03.4]} 31. Kh2 {[%clk 0:01:10.2]} 31... Bg4 {[%clk
0:00:03.4]} 32. Rg2 {[%clk 0:01:08.8]} 32... Be6 {[%clk 0:00:02.3]} 33. Kg3
{[%clk 0:01:08.4]} 33... Bd7 {[%clk 0:00:01]} 34. Rf2 {[%clk 0:01:08.7]} 1-0

[Event "*** Titled Tuesday Blitz"]
[Site "Chess.com"]
[Date "2021.02.02"]
[Round "4"]
[White "leejunhyeok"]
[Black "BairaKovanova"]
[Result "0-1"]
[WhiteElo "2635"]
[BlackElo "2509"]
[TimeControl "180+1"]
[EndTime "10:40:57 PST"]
[Termination "BairaKovanova won on time"]

1. e4 {[%clk 0:03:00.9]} 1... e5 {[%clk 0:02:59.5]} 2. Nf3 {[%clk 0:02:59.3]}
2... Nc6 {[%clk 0:02:59.4]} 3. Bc4 {[%clk 0:02:59.7]} 3... Nf6 {[%clk
0:02:58.2]} 4. d3 {[%clk 0:02:57.9]} 4... Be7 {[%clk 0:02:57]} 5. O-O {[%clk
0:02:56.9]} 5... O-O {[%clk 0:02:56.4]} 6. Re1 {[%clk 0:02:57.3]} 6... d6 {[%clk
0:02:56.4]} 7. a4 {[%clk 0:02:57.4]} 7... Be6 {[%clk 0:02:52.3]} 8. Bxe6 {[%clk
0:02:53.8]} 8... fxe6 {[%clk 0:02:52.1]} 9. c3 {[%clk 0:02:50.2]} 9... Nh5
{[%clk 0:02:37.4]} 10. Be3 {[%clk 0:02:47.1]} 10... Qe8 {[%clk 0:02:33]} 11.
Nbd2 {[%clk 0:02:38.7]} 11... Qg6 {[%clk 0:02:29.1]} 12. b4 {[%clk 0:02:34.8]}
12... Nd8 {[%clk 0:01:44.5]} 13. d4 {[%clk 0:02:23.2]} 13... exd4 {[%clk
0:01:39.9]} 14. cxd4 {[%clk 0:02:21.4]} 14... Nf4 {[%clk 0:01:20.1]} 15. Bxf4
{[%clk 0:02:14.3]} 15... Rxf4 {[%clk 0:01:21]} 16. Rc1 {[%clk 0:02:12.1]} 16...
c6 {[%clk 0:01:16]} 17. b5 {[%clk 0:02:07.4]} 17... Kh8 {[%clk 0:01:05]} 18.
bxc6 {[%clk 0:01:35.8]} 18... Nxc6 {[%clk 0:01:04.1]} 19. d5 {[%clk 0:01:31.6]}
19... Ne5 {[%clk 0:00:57.4]} 20. Nxe5 {[%clk 0:01:20.3]} 20... dxe5 {[%clk
0:00:57.3]} 21. Rc7 {[%clk 0:01:19.1]} 21... Bd6 {[%clk 0:00:57.3]} 22. Rxb7
{[%clk 0:01:17.1]} 22... Bc5 {[%clk 0:00:51.2]} 23. Rf1 {[%clk 0:01:14.8]} 23...
Raf8 {[%clk 0:00:49.1]} 24. Qe2 {[%clk 0:01:07]} 24... h6 {[%clk 0:00:44.8]} 0-1